[Event "VII Totalizator Sportowy 2022"]
[Site "Bydgoszcz"]
[Date "2022.06.29"]
[Round "5.9"]
[White "Kosakowski, Jakub"]
[Black "Kacprzak, Kacper"]
[Result "1-0"]
[ECO "C89"]
[WhiteElo "2435"]
[BlackElo "2238"]
[Annotator "TA"]
[PlyCount "86"]
[EventDate "2022.06.25"]
[EventType "swiss"]
[EventCountry "POL"]
[SourceTitle "playchess.com"]
[Source "ChessBase"]
[SourceQuality "1"]
[TimeControl "40/5400+30:1800+30"]

{[%evp 26,86,37,27,40,38,37,39,32,32,37,41,51,48,116,116,154,114,118,123,116,104,95,89,114,110,111,114,138,135,135,125,132,133,127,134,177,162,147,155,162,126,149,136,135,122,170,127,218,169,143,160,237,231,226,234,243,238,235,233,666,642,575]} 1. e4 {[%emt 0:00:16]} e5 {[%emt 0:00:06]} 2. Nf3 {[%emt 0:00:31]} Nc6 {[%emt 0:00:06]} 3. Bb5 {[%emt 0:00:28]} a6 {[%emt 0:00:19]} 4. Ba4 {[%emt 0:00:12]} Nf6 {[%emt 0:00:06]} 5. O-O {[%emt 0:01:43]} Be7 {[%emt 0:00:19]} 6. Re1 {[%emt 0:00:28]} b5 {[%emt 0:00:13]} 7. Bb3 {[%emt 0:00:13]} O-O {[%emt 0:00:11]} 8. c3 {[%emt 0:04:50]} d5 {[%emt 0:00:30]} 9. exd5 {[%emt 0:00:11]} Nxd5 {[%emt 0:00:04]} 10. Nxe5 {[%emt 0:00:14]} Nxe5 {[%emt 0:00:05]} 11. Rxe5 {[%emt 0:00:12]} c6 {[%emt 0:00:03]} 12. d3 {[%emt 0:00:27]} Bd6 {[%emt 0:00:59]} 13. Re1 {[%emt 0:00:13]} Bf5 {[%emt 0:00:09]} 14. Qf3 {[%emt 0:01:25]} Re8 {[%emt 0:01:54] C89: Closed Ruy Lopez: Marshall Attack.} 15. Rxe8+ {[%emt 0:01:08]} Qxe8 {[%emt 0:00:04][%cal Re8e1] [#]} 16. Nd2 {[%emt 0:00:11]} Qe1+ {[%emt 0:00:05] White is slightly better.} 17. Nf1 {[%emt 0:00:11]} Bg6 {[%emt 0:00:34]} 18. g3 {[%emt 0:00:25]} Re8 {[%emt 0:07:32]} 19. Bd1 $1 {[%emt 0:00:57] [#]} b4 $146 {[%emt 0:05:51]} ({Black should try} 19... Qe7 $14) ({Predecessor:} 19... a5 20. Bd2 Qe5 21. a4 b4 22. Bb3 Rb8 23. Re1 Qf5 24. Qxf5 Bxf5 25. c4 Nc7 {1-0 (38) Saric,I (2646)-Adams,M (2701) Chess.com INT 2020}) 20. Bd2 $16 {[%emt 0:03:35]} Qe5 {[%emt 0:00:38][%cal Rb4c3]} 21. Bb3 {[%emt 0:12:01] Threatens to win with Re1.} Qf5 {[%emt 0:18:45]} 22. Qxf5 {[%emt 0:02:50]} Bxf5 {[%emt 0:00:47]} 23. Bc4 {[%emt 0:09:33]} a5 {[%emt 0:08:32]} 24. Ne3 {[%emt 0:01:30]} Be6 {[%emt 0:03:50]} 25. cxb4 {[%emt 0:06:42]} axb4 {[%emt 0:05:13]} 26. Rc1 {[%emt 0:02:17]} Be5 {[%emt 0:11:34]} 27. Bb3 {[%emt 0:02:00]} Bxb2 {[%emt 0:06:33]} 28. Rxc6 {[%emt 0:00:14]} Nc3 {[%emt 0:06:26]} 29. Bxe6 {[%emt 0:19:24]} fxe6 {[%emt 0:00:20]} 30. Nc4 {[%emt 0:04:31]} Ne2+ {[%emt 0:07:28] [#]} 31. Kf1 $1 {[%emt 0:01:11]} Nd4 {[%emt 0:02:25]} 32. Ra6 {[%emt 0:11:03]} Bc3 {[%emt 0:00:36]} 33. Be3 {[%emt 0:00:13]} Nf5 {[%emt 0:04:29]} 34. Ke2 {[%emt 0:00:51]} h5 {[%emt 0:01:28]} 35. h3 {[%emt 0:02:40][%cal Bh2h3,Bh3g4][%mdl 32]} Rb8 {[%emt 0:04:43]} (35... Rf8 $16 36. Bb6 (36. Rxe6 h4 $16) 36... Bd4 37. Bxd4 Nxd4+ 38. Kf1 g5) 36. Na5 {[%emt 0:02:21]} Kf7 {[%emt 0:00:58]} (36... Rb5 $16 37. g4 Nd4+ 38. Bxd4 Bxd4) 37. g4 {[%emt 0:00:58]} hxg4 {[%emt 0:00:05]} 38. hxg4 {[%emt 0:00:04]} Ne7 {[%emt 0:01:21]} (38... Nxe3 $16 39. fxe3 (39. Kxe3 Rh8 $16) 39... Rh8) 39. Ra7 $18 {[%emt 0:00:45]} Rc8 {[%emt 0:00:07]} 40. Nc4 {[%emt 0:00:00]} Kf8 {[%emt 0:00:00]} 41. Nb6 {[%emt 0:06:57]} Rc6 {[%emt 0:03:11]} 42. Bc5 $1 {[%emt 0:03:40]} Bf6 {[%emt 0:00:57]} (42... Kg8 43. d4 (43. Rxe7 Rxc5 44. Nc4 Rc8 $16) (43. Bxe7 Rxb6 44. f4 Bf6 $16) 43... Ng6) 43. Nd7+ {[%emt 0:00:17]} Kf7 {[%emt 0:00:09] Weighted Error Value: White=0.07 (flawless) /Black=0.35} 1-0

[Event "VII Totalizator Sportowy 2022"]
[Site "Bydgoszcz"]
[Date "2022.06.29"]
[Round "5.10"]
[White "Hnydiuk, Aleksander"]
[Black "Jarocka, Liwia"]
[Result "1/2-1/2"]
[ECO "E04"]
[WhiteElo "2394"]
[BlackElo "2006"]
[Annotator "TA"]
[PlyCount "62"]
[EventDate "2022.06.25"]
[EventType "swiss"]
[EventCountry "POL"]
[SourceTitle "playchess.com"]
[Source "ChessBase"]
[SourceQuality "1"]
[TimeControl "40/5400+30:1800+30"]

{[%evp 11,62,18,16,-4,0,0,-4,0,11,4,54,57,69,35,56,30,37,38,35,36,39,21,18,21,60,14,37,43,38,0,7,-6,0,0,0,-5,-6,-46,-45,-47,0,-68,-53,-53,-53,-64,-65,-54,-55,-60,-24,-155,-141]} 1. Nf3 {[%emt 0:01:57]} Nf6 {[%emt 0:00:15]} 2. c4 {[%emt 0:00:05]} e6 {[%emt 0:00:09]} 3. g3 {[%emt 0:00:04]} d5 {[%emt 0:00:10]} 4. d4 {[%emt 0:00:06]} dxc4 {[%emt 0:00:19]} 5. Bg2 {[%emt 0:00:05]} a6 {[%emt 0:00:09]} 6. O-O {[%emt 0:00:10]} Nc6 {[%emt 0:00:19]} 7. Qd2 {[%emt 0:00:43] E04: Open Catalan: 5 Nf3.} Rb8 {[%emt 0:04:51]} 8. Ne5 {[%emt 0:03:15]} Nxe5 {[%emt 0:04:57]} 9. dxe5 {[%emt 0:00:05] The position is equal.} Qxd2 {[%emt 0:06:25]} 10. Nxd2 {[%emt 0:00:06]} Nd5 {[%emt 0:03:27]} (10... c3 $11 11. bxc3 (11. exf6 cxd2 12. fxg7 Bxg7 $11) 11... Nd5) 11. Nxc4 $14 {[%emt 0:00:22] [#]} b5 $146 {[%emt 0:00:49]} ({Predecessor:} 11... Be7 12. Bd2 O-O 13. Rfd1 Rd8 14. e4 Nb6 15. Nxb6 cxb6 16. Be3 Rxd1+ 17. Rxd1 b5 {½-½ (56) Lysyj,I (2593)-Bocharov,D (2528) Khanty-Mansiysk 2020}) 12. Nd2 {[%emt 0:23:51]} Bc5 {[%emt 0:05:35]} 13. Rd1 {[%emt 0:09:42]} Bb7 {[%emt 0:02:46]} 14. Ne4 {[%emt 0:05:43]} Bb6 {[%emt 0:00:51]} 15. b3 {[%emt 0:03:44]} O-O {[%emt 0:00:42]} 16. Bb2 {[%emt 0:07:23]} Rfd8 {[%emt 0:09:45]} 17. Rac1 {[%emt 0:22:24]} Ba8 {[%emt 0:02:14]} 18. Ba3 {[%emt 0:08:57]} (18. Nc5 $14 {deserves consideration.}) 18... a5 {[%emt 0:01:59]} (18... Ne3 {seems wilder.} 19. fxe3 Bxe3+ 20. Nf2 Bxc1 21. Bxc1 Rxd1+ 22. Nxd1 Rd8) 19. Bc5 {[%emt 0:01:47]} b4 {[%emt 0:01:39]} 20. Bxb6 {[%emt 0:01:20]} cxb6 {[%emt 0:00:07]} 21. Bf3 {[%emt 0:03:28]} Kf8 {[%emt 0:04:19]} 22. Rc4 {[%emt 0:00:09]} Rdc8 {[%emt 0:12:35]} 23. Rxc8+ {[%emt 0:05:36]} Rxc8 {[%emt 0:00:04][%cal Bb8c8,Bc8c2,Bc2e2][%mdl 32]} 24. Nd6 {[%emt 0:00:04]} Rc2 {[%emt 0:01:18]} 25. Nc4 {[%emt 0:00:06] [#] Hoping for e4.} Ke7 {[%emt 0:01:42]} (25... b5 $1 $15 26. Nxa5 Rxa2) 26. Bxd5 {[%emt 0:01:39]} (26. Ra1 $11) 26... Bxd5 $15 {[%emt 0:00:21]} 27. Nxb6 {[%emt 0:00:05]} Rxe2 {[%emt 0:00:55]} 28. Nxd5+ {[%emt 0:00:41]} exd5 {[%emt 0:00:05]} 29. Rxd5 {[%emt 0:00:03]} Rxa2 $11 {[%emt 0:00:08] KR-KR} 30. Kg2 {[%emt 0:00:34]} Ra3 {[%emt 0:01:43]} (30... Ke6 $5 {[%cal Re6d5]} 31. Rc5 Ra3 $15) 31. h4 {[%emt 0:00:29]} (31. f4 $1 $11 {keeps the balance.}) 31... h5 {[%emt 0:01:38] Weighted Error Value: White=0.27 (precise) /Black=0.10 (very precise)} ({And not} 31... Rxb3 32. Rxa5 Rc3 33. Rb5 $17) 1/2-1/2

[Event "VII Totalizator Sportowy 2022"]
[Site "Bydgoszcz"]
[Date "2022.06.29"]
[Round "5.11"]
[White "Malek, Jan"]
[Black "Golubka, Petro"]
[Result "1-0"]
[ECO "C75"]
[WhiteElo "2316"]
[BlackElo "2380"]
[Annotator "TA"]
[PlyCount "79"]
[EventDate "2022.06.25"]
[EventType "swiss"]
[EventCountry "POL"]
[SourceTitle "playchess.com"]
[Source "ChessBase"]
[SourceQuality "1"]
[TimeControl "40/5400+30:1800+30"]

{[%evp 14,79,57,54,66,41,69,72,73,49,50,50,41,45,56,30,30,30,31,27,35,0,0,0,0,0,0,-2,13,0,0,0,0,-80,-81,-70,-7,-43,0,0,0,0,93,97,87,0,0,0,93,69,62,0,145,152,321,104,117,0,324,271,248,244,495,37,714,647,29993,29994]} 1. e4 {[%emt 0:00:03]} e5 {[%emt 0:00:48]} 2. Nf3 {[%emt 0:00:10]} Nc6 {[%emt 0:00:04]} 3. Bb5 {[%emt 0:00:07]} Nge7 {[%emt 0:00:40]} 4. c3 {[%emt 0:00:42]} a6 {[%emt 0:00:04]} 5. Ba4 {[%emt 0:00:12]} d6 {[%emt 0:00:48]} 6. d4 {[%emt 0:00:58]} Bd7 {[%emt 0:00:04]} 7. Be3 {[%emt 0:02:15]} Ng6 {[%emt 0:02:32]} 8. h4 {[%emt 0:01:47]} h5 {[%emt 0:00:14] C75: Ruy Lopez: Deferred Steinitz: 5 c3 Bd7 6 d4 without ...g6.} 9. g3 {[%emt 0:11:06]} Be7 {[%emt 0:01:25]} 10. d5 {[%emt 0:04:14]} Nb8 {[%emt 0:04:46][%cal Bc6b8,Bb8d7,Bd7f6][%mdl 32] White is better.} 11. Bxd7+ {[%emt 0:00:46]} Nxd7 {[%emt 0:00:07]} 12. c4 {[%emt 0:00:11]} Nf6 {[%emt 0:00:37]} 13. Nc3 {[%emt 0:01:36]} Ng4 {[%emt 0:00:14]} 14. Qa4+ {[%emt 0:09:06]} Qd7 {[%emt 0:00:15]} 15. Qxd7+ {[%emt 0:04:37]} Kxd7 {[%emt 0:00:07] [#]} 16. Ke2 $146 {[%emt 0:07:46]} ({Predecessor:} 16. Bd2 f6 17. Ke2 Raf8 18. b4 f5 19. Ng5 fxe4 20. Ncxe4 Nf6 21. Nxf6+ gxf6 22. Ne6 {½-½ (40) Immonen,V (1926)-Tuovinen,J (2171) Helsinki 2010}) 16... Nxe3 {[%emt 0:07:49]} 17. fxe3 {[%emt 0:01:09]} Nf8 {[%emt 0:02:42]} 18. b4 {[%emt 0:05:26]} Ke8 {[%emt 0:07:50]} 19. Nd2 {[%emt 0:05:54]} Nd7 {[%emt 0:07:03]} 20. Nb3 {[%emt 0:00:03]} b6 {[%emt 0:16:56]} 21. Kd3 {[%emt 0:09:04]} Rh6 {[%emt 0:00:47]} 22. a4 {[%emt 0:03:15]} Rg6 {[%emt 0:02:46]} 23. a5 {[%emt 0:09:07]} (23. Rhg1 $11) 23... Rxg3 $17 {[%emt 0:01:29]} 24. b5 {[%emt 0:00:06]} Nb8 {[%emt 0:01:18]} (24... bxa5 $15 25. Rxa5 Rb8 26. Rxa6 Rc8) 25. Ra4 {[%emt 0:00:44]} Nd7 {[%emt 0:10:56]} 26. axb6 {[%emt 0:09:03]} Nxb6 {[%emt 0:01:09]} 27. Rxa6 {[%emt 0:00:02][%cal Oc3a4]} Rg4 {[%emt 0:05:47] [#]} (27... Rc8 $11) 28. Na4 $1 $16 {[%emt 0:10:33]} Rb8 {[%emt 0:06:53]} (28... Rxh4 $2 29. Rxh4 Bxh4 30. Nxb6 $18) 29. Ra1 {[%emt 0:00:01]} (29. Nxb6 $16 {And now Na8 would win.} cxb6 30. Nd2) 29... Bxh4 $11 {[%emt 0:04:53][%cal Of7f5]} 30. Na5 {[%emt 0:00:08] Threatens to win with Nc6.} f5 {[%emt 0:00:53]} (30... Nd7 $1 $11) 31. Nc6 {[%emt 0:02:24] Pair of Knights!} (31. exf5 e4+ 32. Kc2 Bf6 $19) 31... fxe4+ {[%emt 0:02:41]} 32. Kc2 {[%emt 0:00:01] White is more active.} (32. Kc3 $14 Nxa4+ 33. R6xa4) 32... Rg2+ {[%emt 0:00:44]} (32... Nxc4 $11 {remains equal.} 33. Nxb8 Nxe3+ 34. Kb3 Nxd5) 33. Kb3 $1 $16 {[%emt 0:00:00]} Rb7 {[%emt 0:01:17]} (33... Nxa4 $16 {keeps fighting.} 34. R1xa4 Rc8) 34. Na5 $2 {[%emt 0:00:46]} (34. Nxb6 $18 {is the precise move to win.} cxb6 35. Rf1) 34... Rb8 {[%emt 0:00:59] White must now prevent ...Nxa4.} 35. Nc6 $2 {[%emt 0:00:03]} (35. Nxb6 $1 $16 cxb6 36. Nc6) 35... Rb7 $18 {[%emt 0:01:42]} 36. Nxb6 {[%emt 0:01:39]} cxb6 {[%emt 0:00:17] [#]} ({Not} 36... Rxb6 37. Ra8+ Kf7 38. R8a7 $18) 37. Rf1 {[%emt 0:00:01] Intending Ra8+ and mate.} Bf6 $2 {[%emt 0:00:47]} (37... Rf2 38. Ra8+ Kd7) 38. c5 $2 {[%emt 0:02:24]} (38. Ra8+ $18 Kd7 39. Rf8) 38... dxc5 $2 {[%emt 0:01:03][%mdl 8192]} (38... bxc5 $14 39. b6 Re2) 39. Ra8+ {[%emt 0:00:25]} Kd7 {[%emt 0:00:07] [#] Strongly threatening ...Kd6.} 40. Rxf6 $1 {[%emt 0:00:00][%mdl 512] Weighted Error Value: White=0.42/Black=0.52} 1-0

[Event "VII Totalizator Sportowy 2022"]
[Site "Bydgoszcz"]
[Date "2022.06.29"]
[Round "5.12"]
[White "Navaratnam, Rohan Shan Tze"]
[Black "Kowalski, Igor"]
[Result "1/2-1/2"]
[ECO "D71"]
[WhiteElo "2071"]
[BlackElo "2370"]
[Annotator "TA"]
[PlyCount "155"]
[EventDate "2022.06.25"]
[EventType "swiss"]
[EventCountry "POL"]
[SourceTitle "playchess.com"]
[Source "ChessBase"]
[SourceQuality "1"]
[TimeControl "40/5400+30:1800+30"]

{[%evp 9,155,6,4,7,14,16,18,17,25,18,18,25,30,19,18,13,0,9,22,20,27,18,26,18,14,28,19,36,46,17,131,115,120,133,120,135,168,54,113,75,84,0,203,197,206,116,116,116,116,116,116,116,116,116,116,119,119,120,120,120,120,120,112,108,120,120,120,120,120,95,95,95,95,95,147,95,95,63,107,107,114,114,140,143,158,78,119,106,122,0,102,78,159,159,154,78,119,0,119,0,119,90,151,151,152,150,159,152,159,143,159,136,181,42,42,46,63,63,63,63,64,67,68,72,71,79,122,129,122,83,103,43,73,78,72,0,0,0,0,-8,-8,-184,-8,-8,-8,-8,-8,-62]} 1. d4 {[%emt 0:00:04]} Nf6 {[%emt 0:00:14]} 2. c4 {[%emt 0:00:04]} g6 {[%emt 0:00:04]} 3. g3 {[%emt 0:00:06]} c6 {[%emt 0:00:33]} 4. Bg2 {[%emt 0:00:07]} d5 {[%emt 0:00:05]} 5. Qa4 {[%emt 0:00:08]} Nfd7 {[%emt 0:00:22]} 6. cxd5 {[%emt 0:00:11] D71: Fianchetto Grünfeld: 3 g3 d5 sidelines and 5 cxd5 (without Nf3).} Nb6 {[%emt 0:00:04][%csl LRa4,LRd5]} 7. Qd1 {[%emt 0:00:11]} cxd5 {[%emt 0:00:05]} 8. Nc3 {[%emt 0:00:07]} Bg7 {[%emt 0:00:09]} 9. e3 {[%emt 0:00:11]} O-O {[%emt 0:00:58]} 10. Nge2 {[%emt 0:00:07]} Nc6 {[%emt 0:00:30]} 11. O-O {[%emt 0:01:34]} Bg4 {[%emt 0:05:30] [#]} 12. b3 $146 {[%emt 0:00:46]} ({Predecessor:} 12. a4 Bxe2 13. Qxe2 e6 14. b3 Nc8 15. Bd2 Re8 16. Rfc1 {½-½ (16) Mchedlishvili,M (2595)-Sindarov,J (2609) Tashkent 2022}) 12... e5 {[%emt 0:02:19][%cal Be7e5,Be5d4][%mdl 32] ...exd4 is the strong threat.} 13. h3 {[%emt 0:00:10]} exd4 {[%emt 0:04:41]} 14. hxg4 {[%emt 0:03:51]} dxc3 {[%emt 0:00:06]} 15. Ba3 {[%emt 0:00:20]} Re8 {[%emt 0:05:36][%cal Oc3c2]} 16. Rc1 {[%emt 0:00:17]} d4 {[%emt 0:08:00]} 17. exd4 {[%emt 0:11:17]} Nxd4 {[%emt 0:00:07]} 18. Nxc3 {[%emt 0:00:15]} Rc8 {[%emt 0:00:17][%cal Oc8c3]} 19. Ne4 {[%emt 0:05:26]} (19. Bxb7 $2 Rxc3 $1 {[%mdl 512]} 20. Rxc3 Ne2+ 21. Kg2 Nxc3 $19) 19... f5 {[%emt 0:05:55]} (19... Nb5 $11 20. Bb4 Rxc1 21. Qxc1 Nd5) 20. Rxc8 {[%emt 0:04:09]} Nxc8 {[%emt 0:00:16]} 21. gxf5 {[%emt 0:03:43]} gxf5 {[%emt 0:00:09]} 22. Nc3 {[%emt 0:03:19]} Ne7 {[%emt 0:23:46][%cal Of5f4]} 23. Qd3 {[%emt 0:16:31]} (23. Ne2 $18) 23... Nec6 {[%emt 0:01:42]} (23... f4 $1 $14) 24. Qc4+ {[%emt 0:02:55]} Kh8 {[%emt 0:00:22][%cal Of5f4]} 25. Qf7 {[%emt 0:00:31]} (25. Rd1 $1 $16) 25... Nc2 $2 {[%emt 0:11:26]} (25... Ne5 $11 26. Qxb7 f4 27. gxf4 Nd3) 26. Rd1 $18 {[%emt 0:14:11]} (26. Qxb7 Na5 27. Qf7 Bxc3 $11) 26... N6d4 {[%emt 0:01:26]} 27. Bc5 {[%emt 0:06:40] A strong pair of Bishops.} ({White should try} 27. Nb5 $1 $18 {[%cal Rb5d4]}) 27... b6 $16 {[%emt 0:05:19]} 28. Bxd4 {[%emt 0:00:11]} Nxd4 {[%emt 0:00:08]} 29. Nb5 $1 {[%emt 0:07:03] Hoping for Nxd4.} (29. Qxa7 f4 $14) 29... Re7 {[%emt 0:02:59]} 30. Qh5 {[%emt 0:01:03]} Rd7 {[%emt 0:09:30] [#]} 31. Re1 $1 {[%emt 0:02:04] Black must now prevent Re8+.} Re7 {[%emt 0:00:14] Prevents Re8+.} 32. Rxe7 {[%emt 0:00:14]} Qxe7 {[%emt 0:00:03]} 33. Nxd4 {[%emt 0:00:06]} Bxd4 {[%emt 0:00:03]} 34. Qxf5 {[%emt 0:00:10][%mdl 4096] Endgame And now Qc8+ would win. KQB-KQB} Qf6 {[%emt 0:00:09]} 35. Qc8+ {[%emt 0:01:02]} Kg7 {[%emt 0:00:07]} 36. Qg4+ {[%emt 0:00:14]} Kf8 {[%emt 0:00:14]} 37. Bf3 {[%emt 0:00:13]} a5 {[%emt 0:00:30]} 38. Kg2 {[%emt 0:00:35]} (38. Qc8+ Kg7 39. Qg4+ (39. Kg2 h5 $16) 39... Kf8 40. Qc8+ Ke7 $16) 38... Bc5 {[%emt 0:00:14]} 39. Qc8+ {[%emt 0:01:24]} Kg7 {[%emt 0:00:27]} 40. Qd7+ {[%emt 0:00:00]} Qf7 {[%emt 0:00:00]} 41. Qd2 {[%emt 0:01:13]} h6 {[%emt 0:01:25]} (41... Qe7 $142 42. a4 Qd6 43. Qg5+ Qg6) 42. Bd5 {[%emt 0:01:30]} (42. Bg4 $142) 42... Qf6 {[%emt 0:00:10]} 43. Be4 {[%emt 0:01:58]} Qd6 {[%emt 0:02:40] Inhibits Qd7+.} 44. Qe2 {[%emt 0:00:33]} Qe6 {[%emt 0:00:35]} 45. Qd3 {[%emt 0:00:28]} Qd6 {[%emt 0:00:23]} 46. Qf3 {[%emt 0:00:22]} Qf6 {[%emt 0:00:34]} 47. Bf5 {[%emt 0:00:18]} (47. Qg4+ $142 Kf8 48. f4 (48. Qc8+ Ke7 $16)) 47... Qd4 {[%emt 0:01:17]} 48. Be6 {[%emt 0:00:34] Threatening mate with Qf7+.} Qf6 {[%emt 0:00:42] Against Qf7+} 49. Bf5 {[%emt 0:05:19]} Qd4 $1 {[%emt 0:01:28]} 50. Bd3 {[%emt 0:00:35]} Qf6 {[%emt 0:01:09]} ({Better is} 50... h5) 51. Qg4+ {[%emt 0:00:10]} Kf8 {[%emt 0:00:06]} 52. Bf5 {[%emt 0:01:05]} (52. f3 $142) 52... Qd4 {[%emt 0:00:46]} 53. Qf3 {[%emt 0:00:08]} Kg7 $1 {[%emt 0:02:57]} 54. Be6 {[%emt 0:01:41] Qf7+ would kill now.} Qf6 {[%emt 0:00:58] Against Qf7+} 55. Qg4+ {[%emt 0:01:50]} Kf8 {[%emt 0:03:31]} (55... Qg6 $142) 56. f4 {[%emt 0:00:49]} Ke7 {[%emt 0:05:22]} 57. Bc4 {[%emt 0:01:10]} Kd6 {[%emt 0:02:39]} 58. Qg8 {[%emt 0:00:56]} Kc7 {[%emt 0:02:01]} 59. Bd5 {[%emt 0:01:00]} Qe7 {[%emt 0:01:47]} 60. Be6 {[%emt 0:00:35] White is more active.} Kd6 {[%emt 0:04:49]} 61. f5 {[%emt 0:00:16]} (61. Bg4 $1 $18) 61... Qb7+ $14 {[%emt 0:02:16]} 62. Kh2 {[%emt 0:01:08]} Qf3 {[%emt 0:02:14] Against Qg4} 63. Qd8+ {[%emt 0:15:34]} Ke5 {[%emt 0:00:05]} 64. Qb8+ {[%emt 0:00:14]} Kf6 $1 {[%emt 0:02:11]} 65. Qh8+ {[%emt 0:00:05]} Ke7 {[%emt 0:00:02]} 66. Qh7+ $1 {[%emt 0:00:25]} (66. Qxh6 $2 Qf2+ 67. Kh3 Qf1+ 68. Kg4 Qd1+ 69. Kf4 Qd2+ 70. Ke4 Qxh6 $19) 66... Kd6 {[%emt 0:00:12] [#]} 67. Bc4 $1 {[%emt 0:00:59]} ({Don't go for} 67. Qxh6 $2 Qf2+ 68. Kh3 Qf1+ 69. Kg4 Qd1+ 70. Kg5 Be3+ 71. Kh4 Qh1+ 72. Kg4 Qxh6 $19) 67... Qe3 {[%emt 0:10:16]} 68. Kh3 {[%emt 0:05:55]} Bd4 {[%emt 0:03:58]} 69. Qg6+ {[%emt 0:02:48]} Kc5 {[%emt 0:00:43]} 70. Bf1 {[%emt 0:07:28]} (70. Qg4 $16) 70... Qf2 {[%emt 0:01:27]} 71. Bg2 {[%emt 0:00:11] Strongly threatening a3.} Kb4 {[%emt 0:00:19] [#]} 72. Be4 {[%emt 0:00:48]} ({Don't play} 72. Qxh6 Qxf5+ 73. g4 Qd3+ 74. Kh4 Ka3 $11) (72. Qd6+ $1 $16 Kc3 73. Qe6 (73. Qxh6 Qxf5+ 74. g4 Qd3+ 75. Kh4 Kb2 $11)) 72... Be5 $11 {[%emt 0:01:12]} 73. Bd5 {[%emt 0:00:45]} Ka3 {[%emt 0:00:21]} 74. Qg4 {[%emt 0:00:37] [#]} Bxg3 $1 {[%emt 0:00:41][%csl Gg3][%cal Rf2h2]} 75. Bg2 $2 {[%emt 0:03:45]} (75. Qa4+ $11 {and White stays safe.} Kb2 76. Qe4) (75. Qe4 Bd6) 75... Be5 $2 {[%emt 0:00:06]} (75... Bd6 $19 76. b4 a4) 76. Qf3 {[%emt 0:01:01] The position is equal.} Qxa2 {[%emt 0:00:55]} 77. b4+ $1 {[%emt 0:00:27]} Qb3 {[%emt 0:00:49]} 78. Qxb3+ {[%emt 0:00:11] White really could win this.  Weighted Error Value: White=0.20 (precise) /Black=0.21 (precise)} (78. bxa5 $11 bxa5 79. Qxb3+ Kxb3 80. Bc6) 1/2-1/2

[Event "VII Totalizator Sportowy 2022"]
[Site "Bydgoszcz"]
[Date "2022.06.29"]
[Round "5.13"]
[White "Syrkiewicz, Michal"]
[Black "Chojnacki, Krzysztof"]
[Result "1/2-1/2"]
[ECO "B07"]
[WhiteElo "2000"]
[BlackElo "2371"]
[Annotator "TA"]
[PlyCount "63"]
[EventDate "2022.06.25"]
[EventType "swiss"]
[EventCountry "POL"]
[SourceTitle "playchess.com"]
[Source "ChessBase"]
[SourceQuality "1"]
[TimeControl "40/5400+30:1800+30"]

{[%evp 15,63,44,67,70,70,52,60,71,76,1,0,-2,14,10,25,19,17,0,0,0,0,0,0,-9,-13,-6,0,-26,-17,-14,-1,-54,-40,-59,-8,-54,-14,-26,0,0,0,-114,-104,-118,-142,-126,-17,-110,-22,-54]} 1. e4 {[%emt 0:00:02]} d6 {[%emt 0:00:56]} 2. d4 {[%emt 0:00:19]} Nf6 {[%emt 0:00:26]} 3. Nc3 {[%emt 0:00:20]} g6 {[%emt 0:00:10]} 4. Be3 {[%emt 0:00:35]} Bg7 {[%emt 0:00:10]} 5. Qd2 {[%emt 0:00:47]} c6 {[%emt 0:00:26]} 6. Bh6 {[%emt 0:00:44]} Bxh6 {[%emt 0:00:12]} 7. Qxh6 {[%emt 0:00:06]} Qa5 {[%emt 0:00:23]} 8. Bd3 {[%emt 0:01:00] 8.0-0-0 deserves study.} Na6 {[%emt 0:00:28]} 9. Nf3 {[%emt 0:04:44] B07: Pirc Defence: Miscellaneous Systems.} Nb4 {[%emt 0:02:52]} 10. O-O {[%emt 0:05:52]} Nxd3 {[%emt 0:01:58]} 11. cxd3 {[%emt 0:00:05] White is slightly better.} Qh5 {[%emt 0:00:30] [#]} 12. Qxh5 $146 {[%emt 0:07:53]} ({Better is} 12. Qe3 $16) ({Predecessor:} 12. Qe3 O-O 13. h3 Kg7 14. Nd2 Bd7 15. f4 Rae8 16. g4 Qa5 17. Rac1 h6 18. Rc2 {1-0 (53) Sobolewski,J (1952)-Szopa,J (1914) ICCF email 2021}) 12... Nxh5 $11 {[%emt 0:02:12]} 13. g3 {[%emt 0:03:58]} O-O {[%emt 0:03:39]} 14. Nd2 {[%emt 0:05:32]} Bh3 {[%emt 0:13:33]} 15. Rfe1 {[%emt 0:06:20]} Rfd8 {[%emt 0:03:04]} 16. b4 {[%emt 0:04:51]} Nf6 {[%emt 0:04:13][%cal Oc6c5]} 17. Red1 {[%emt 0:05:55]} c5 {[%emt 0:07:53]} 18. bxc5 {[%emt 0:05:05]} dxc5 {[%emt 0:00:36]} 19. d5 {[%emt 0:00:25]} e6 {[%emt 0:00:57]} 20. dxe6 {[%emt 0:02:06]} Bxe6 {[%emt 0:07:40]} 21. Nb3 {[%emt 0:02:15]} b6 {[%emt 0:03:10]} 22. f3 {[%emt 0:01:35]} Rd7 {[%emt 0:08:18]} 23. Kf2 {[%emt 0:02:53]} (23. d4 $11) 23... Rad8 $15 {[%emt 0:00:57]} 24. Ke3 {[%emt 0:00:54]} Kf8 {[%emt 0:02:19]} (24... Ne8 $15) 25. Rd2 {[%emt 0:01:51]} (25. Nc1 $11 {deserves consideration.}) 25... h5 {[%emt 0:05:51]} 26. h4 {[%emt 0:02:24]} Ke7 {[%emt 0:01:45]} 27. Rad1 {[%emt 0:03:04]} Rd4 {[%emt 0:03:35]} 28. Nxd4 {[%emt 0:06:09]} (28. Kf2 $11 Bxb3 29. axb3) 28... cxd4+ $17 {[%emt 0:00:06]} 29. Ke2 {[%emt 0:00:02] [#] Black must now prevent Nb5.} dxc3 {[%emt 0:00:19]} 30. Rc2 {[%emt 0:00:03]} Rd7 {[%emt 0:09:26]} ({Stronger than} 30... Rc8 31. Rdc1 $15) (30... Rd4 $17 {...Ra4 is the strong threat.} 31. Rxc3 Ra4) 31. Ra1 {[%emt 0:01:08]} (31. Rxc3 $11 {remains equal.} Bxa2 32. Ra1) 31... Ne8 {[%emt 0:04:48]} ({Of course not} 31... Rc7 $6 32. Rac1 $15) (31... Rd4 $17) 32. Rxc3 {Weighted Error Value: White=0.31/Black=0.27 (precise)} 1/2-1/2